[Event "Titled Tuesday Blitz August 08 Late 2023"]
[White "Chen, Max"]
[Black "Luczak, Filip"]
[WhiteFideId "2622440"]
[BlackFideId "1193686"]
[WhiteElo "2562"]
[BlackElo "2456"]
[Result "0-1"]
[Round "11"]
[TimeControl "180+1"]
[Date "2023.08.08"]
[WhiteClock "0:00:00"]
[BlackClock "0:00:53"]
[Board "54"]

1. e4 {[%clk 0:03:00]}  g6 {[%clk 0:03:00]} 2. d4 {[%clk 0:02:58]}  Bg7 {[%clk 0:02:57]} 3. Nc3 {[%clk 0:02:58]}  c5 {[%clk 0:02:57]} 4. d5 {[%clk 0:02:50]}  a6 {[%clk 0:02:55]} 5. a4 {[%clk 0:02:50]}  d6 {[%clk 0:02:54]} 6. Nf3 {[%clk 0:02:47]}  Bg4 {[%clk 0:02:52]} 7. h3 {[%clk 0:02:45]}  Bxf3 {[%clk 0:02:52]} 8. Qxf3 {[%clk 0:02:46]}  Nd7 {[%clk 0:02:53]} 9. Be2 {[%clk 0:02:43]}  Ngf6 {[%clk 0:02:51]} 10. O-O {[%clk 0:02:42]}  O-O {[%clk 0:02:50]} 11. g4 {[%clk 0:02:33]}  Qa5 {[%clk 0:02:46]} 12. Bd2 {[%clk 0:02:27]}  Qb6 {[%clk 0:02:43]} 13. Rab1 {[%clk 0:02:18]}  Rac8 {[%clk 0:02:17]} 14. Qg3 {[%clk 0:02:13]}  c4 {[%clk 0:02:16]} 15. Be3 {[%clk 0:02:09]}  Nc5 {[%clk 0:02:14]} 16. g5 {[%clk 0:01:26]}  Nfd7 {[%clk 0:02:13]} 17. Bxc4 {[%clk 0:01:24]}  Qb4 {[%clk 0:02:08]} 18. Bd3 {[%clk 0:01:19]}  Bxc3 {[%clk 0:02:07]} 19. bxc3 {[%clk 0:01:18]}  Qxc3 {[%clk 0:02:08]} 20. Bc1 {[%clk 0:01:09]}  Qe5 {[%clk 0:01:54]} 21. f4 {[%clk 0:01:06]}  Qd4+ {[%clk 0:01:48]} 22. Kh1 {[%clk 0:01:02]}  Nxe4 {[%clk 0:01:48]} 23. Qf3 {[%clk 0:00:49]}  Nc3 {[%clk 0:01:39]} 24. Bb2 {[%clk 0:00:49]}  Qxd5 {[%clk 0:01:39]} 25. Bxc3 {[%clk 0:00:46]}  Qxf3+ {[%clk 0:01:39]} 26. Rxf3 {[%clk 0:00:47]}  Rxc3 {[%clk 0:01:39]} 27. Rxb7 {[%clk 0:00:47]}  Rd8 {[%clk 0:01:36]} 28. Ra7 {[%clk 0:00:43]}  Kf8 {[%clk 0:01:30]} 29. Rxa6 {[%clk 0:00:41]}  Nc5 {[%clk 0:01:30]} 30. Ra7 {[%clk 0:00:39]}  Rb8 {[%clk 0:01:22]} 31. Kg2 {[%clk 0:00:34]}  Rb2 {[%clk 0:01:20]} 32. Kg3 {[%clk 0:00:31]}  Ra2 {[%clk 0:01:20]} 33. a5 {[%clk 0:00:30]}  Rca3 {[%clk 0:01:18]} 34. Ra8+ {[%clk 0:00:18]}  Kg7 {[%clk 0:01:17]} 35. Ra7 {[%clk 0:00:18]}  e6 {[%clk 0:01:15]} 36. a6 {[%clk 0:00:14]}  Nxa6 {[%clk 0:01:15]} 37. Rd7 {[%clk 0:00:14]}  d5 {[%clk 0:01:14]} 38. c4 {[%clk 0:00:09]}  Nc5 {[%clk 0:01:13]} 39. cxd5 {[%clk 0:00:06]}  Nxd7 {[%clk 0:01:12]} 40. dxe6 {[%clk 0:00:06]}  fxe6 {[%clk 0:01:13]} 41. Bb5 {[%clk 0:00:06]}  Rxf3+ {[%clk 0:01:12]} 42. Kxf3 {[%clk 0:00:06]}  Ra3+ {[%clk 0:01:13]} 43. Ke4 {[%clk 0:00:06]}  Nc5+ {[%clk 0:01:14]} 44. Kd4 {[%clk 0:00:07]}  Nb7 {[%clk 0:01:11]} 45. Bc6 {[%clk 0:00:06]}  Nd6 {[%clk 0:01:09]} 46. Ke5 {[%clk 0:00:07]}  Nf7+ {[%clk 0:01:08]} 47. Kxe6 {[%clk 0:00:07]}  Rxh3 {[%clk 0:01:09]} 48. f5 {[%clk 0:00:07]}  Nxg5+ {[%clk 0:01:09]} 49. Ke7 {[%clk 0:00:07]}  Re3+ {[%clk 0:01:08]} 50. Kd7 {[%clk 0:00:06]}  gxf5 {[%clk 0:01:08]} 51. Kd6 {[%clk 0:00:07]}  Kf6 {[%clk 0:01:08]} 52. Kc5 {[%clk 0:00:07]}  Ke5 {[%clk 0:01:08]} 53. Kb6 {[%clk 0:00:08]}  Kd6 {[%clk 0:01:07]} 54. Bb5 {[%clk 0:00:08]}  Rb3 {[%clk 0:01:07]} 55. Ka5 {[%clk 0:00:09]}  Rb4 {[%clk 0:01:08]} 56. Kxb4 {[%clk 0:00:09]}  Ke5 {[%clk 0:01:06]} 57. Kc3 {[%clk 0:00:09]}  Kf4 {[%clk 0:01:07]} 58. Kd2 {[%clk 0:00:10]}  Kg3 {[%clk 0:01:07]} 59. Ke2 {[%clk 0:00:10]}  f4 {[%clk 0:01:07]} 60. Be8 {[%clk 0:00:10]}  f3+ {[%clk 0:01:06]} 61. Ke3 {[%clk 0:00:09]}  f2 {[%clk 0:01:05]} 62. Ke2 {[%clk 0:00:10]}  Nf3 {[%clk 0:01:00]} 63. Bb5 {[%clk 0:00:03]}  Nd4+ {[%clk 0:01:00]} 64. Kf1 {[%clk 0:00:04]}  Nxb5 {[%clk 0:01:01]} 65. Ke2 {[%clk 0:00:05]}  Kg2 {[%clk 0:01:01]} 66. Ke3 {[%clk 0:00:04]}  h5 {[%clk 0:00:49]} 67. Ke4 {[%clk 0:00:05]}  h4 {[%clk 0:00:50]} 68. Kd5 {[%clk 0:00:06]}  h3 {[%clk 0:00:51]} 69. Ke5 {[%clk 0:00:07]}  h2 {[%clk 0:00:52]} 70. Ke4 {[%clk 0:00:08]}  Nc3+ {[%clk 0:00:51]} 71. Ke5 {[%clk 0:00:09]}  Nb1 {[%clk 0:00:52]} 72. Kd5 {[%clk 0:00:10]}  Nd2 {[%clk 0:00:52]} 73. Kc5 {[%clk 0:00:10]}  Nf1 {[%clk 0:00:53]} 74. Kd4 {[%clk 0:00:11]}  Ng3 {[%clk 0:00:54]} 75. Kd5 {[%clk 0:00:12]}  Nh1 {[%clk 0:00:54]} 76. Kd4 {[%clk 0:00:13]}  f1=N {[%clk 0:00:49]} 77. Kd5 {[%clk 0:00:14]}  Nhg3 {[%clk 0:00:49]} 78. Kc5 {[%clk 0:00:15]}  h1=N {[%clk 0:00:49]} 79. Kb4 {[%clk 0:00:16]}  Nf2 {[%clk 0:00:49]} 80. Kb5 {[%clk 0:00:17]}  Kf3 {[%clk 0:00:50]} 81. Kb4 {[%clk 0:00:18]}  Ne3 {[%clk 0:00:51]} 82. Kc5 {[%clk 0:00:19]}  Ke2 {[%clk 0:00:51]} 83. Kb5 {[%clk 0:00:19]}  Nge4 {[%clk 0:00:51]} 84. Kb4 {[%clk 0:00:20]}  Kd3 {[%clk 0:00:51]} 85. Ka5 {[%clk 0:00:20]}  Nfg4 {[%clk 0:00:52]} 86. Kb6 {[%clk 0:00:21]}  Ne5 {[%clk 0:00:52]} 87. Kb5 {[%clk 0:00:00]}  Kd4 {[%clk 0:00:53]} 0-1


[Site "https://www.chess.com"]

[Event "Titled Tuesday Blitz August 08 Late 2023"]
[White "Eggleston, Thomas A"]
[Black "Hajiyev, Kanan"]
[WhiteFideId "412139"]
[BlackFideId "13404148"]
[WhiteElo "2400"]
[BlackElo "2545"]
[Result "0-1"]
[Round "11"]
[TimeControl "180+1"]
[Date "2023.08.08"]
[WhiteClock "0:00:00"]
[BlackClock "0:00:08"]
[Board "56"]

1. e4 {[%clk 0:03:00]}  c6 {[%clk 0:03:00]} 2. Nc3 {[%clk 0:02:58]}  d5 {[%clk 0:03:01]} 3. Nf3 {[%clk 0:02:58]}  a6 {[%clk 0:03:02]} 4. g3 {[%clk 0:02:54]}  Bg4 {[%clk 0:03:02]} 5. Bg2 {[%clk 0:02:52]}  e6 {[%clk 0:03:02]} 6. h3 {[%clk 0:02:51]}  Bh5 {[%clk 0:03:02]} 7. d3 {[%clk 0:02:50]}  Nf6 {[%clk 0:03:02]} 8. Qe2 {[%clk 0:02:48]}  Bb4 {[%clk 0:03:01]} 9. O-O {[%clk 0:02:45]}  O-O {[%clk 0:02:59]} 10. Bg5 {[%clk 0:02:39]}  Be7 {[%clk 0:02:56]} 11. g4 {[%clk 0:02:32]}  Bg6 {[%clk 0:02:52]} 12. Ne5 {[%clk 0:02:32]}  Nxe4 {[%clk 0:02:38]} 13. Nxe4 {[%clk 0:01:55]}  Bxg5 {[%clk 0:02:35]} 14. Nxg5 {[%clk 0:01:55]}  Qxg5 {[%clk 0:02:34]} 15. f4 {[%clk 0:01:55]}  Qh4 {[%clk 0:02:27]} 16. f5 {[%clk 0:01:47]}  exf5 {[%clk 0:02:25]} 17. gxf5 {[%clk 0:01:47]}  Bh5 {[%clk 0:02:25]} 18. Qf2 {[%clk 0:01:42]}  Qxf2+ {[%clk 0:02:21]} 19. Rxf2 {[%clk 0:01:42]}  Re8 {[%clk 0:02:03]} 20. Ng4 {[%clk 0:01:34]}  f6 {[%clk 0:01:59]} 21. Nh2 {[%clk 0:01:18]}  Nd7 {[%clk 0:01:55]} 22. Nf1 {[%clk 0:01:18]}  a5 {[%clk 0:01:45]} 23. Ng3 {[%clk 0:01:17]}  Bf7 {[%clk 0:01:43]} 24. Rd1 {[%clk 0:01:07]}  a4 {[%clk 0:01:41]} 25. c4 {[%clk 0:01:07]}  a3 {[%clk 0:01:31]} 26. b3 {[%clk 0:01:06]}  d4 {[%clk 0:01:19]} 27. Ne4 {[%clk 0:01:03]}  Ne5 {[%clk 0:01:13]} 28. Nd6 {[%clk 0:00:54]}  Re7 {[%clk 0:01:11]} 29. Nxf7 {[%clk 0:00:51]}  Kxf7 {[%clk 0:01:11]} 30. b4 {[%clk 0:00:51]}  Ra4 {[%clk 0:01:10]} 31. b5 {[%clk 0:00:50]}  cxb5 {[%clk 0:01:05]} 32. Bd5+ {[%clk 0:00:49]}  Ke8 {[%clk 0:01:01]} 33. cxb5 {[%clk 0:00:41]}  Rb4 {[%clk 0:01:01]} 34. Rc2 {[%clk 0:00:40]}  Rxb5 {[%clk 0:00:56]} 35. Be6 {[%clk 0:00:35]}  Nc6 {[%clk 0:00:50]} 36. Rc4 {[%clk 0:00:24]}  g5 {[%clk 0:00:38]} 37. Ra4 {[%clk 0:00:23]}  Ra5 {[%clk 0:00:30]} 38. Rxa5 {[%clk 0:00:20]}  Nxa5 {[%clk 0:00:31]} 39. Rc1 {[%clk 0:00:18]}  Nc6 {[%clk 0:00:27]} 40. Rc4 {[%clk 0:00:18]}  Kd8 {[%clk 0:00:18]} 41. Ra4 {[%clk 0:00:17]}  Kc7 {[%clk 0:00:18]} 42. Rxa3 {[%clk 0:00:17]}  Kd6 {[%clk 0:00:17]} 43. Kf2 {[%clk 0:00:17]}  Ne5 {[%clk 0:00:16]} 44. Rb3 {[%clk 0:00:16]}  h5 {[%clk 0:00:15]} 45. a4 {[%clk 0:00:15]}  Kc5 {[%clk 0:00:14]} 46. Rb5+ {[%clk 0:00:14]}  Kc6 {[%clk 0:00:15]} 47. Rb3 {[%clk 0:00:14]}  Rg7 {[%clk 0:00:13]} 48. Ke2 {[%clk 0:00:12]}  b6 {[%clk 0:00:13]} 49. Rb4 {[%clk 0:00:12]}  Kc5 {[%clk 0:00:13]} 50. Rb5+ {[%clk 0:00:12]}  Kc6 {[%clk 0:00:13]} 51. Rb4 {[%clk 0:00:12]}  g4 {[%clk 0:00:12]} 52. Rxd4 {[%clk 0:00:09]}  g3 {[%clk 0:00:08]} 53. Re4 {[%clk 0:00:00]}  g2 {[%clk 0:00:08]} 0-1


[Site "https://www.chess.com"]

[Event "Titled Tuesday Blitz August 08 Late 2023"]
[White "Slaby, Jerzy"]
[Black "kiwibobo"]
[WhiteFideId "1121405"]
[WhiteElo "2532"]
[BlackElo "2395"]
[Result "1-0"]
[Round "11"]
[TimeControl "180+1"]
[Date "2023.08.08"]
[WhiteClock "0:01:10"]
[BlackClock "0:00:50"]
[Board "57"]

1. e4 {[%clk 0:03:00]}  e5 {[%clk 0:03:00]} 2. Nf3 {[%clk 0:03:00]}  Nc6 {[%clk 0:03:01]} 3. Bb5 {[%clk 0:02:57]}  a6 {[%clk 0:03:00]} 4. Bxc6 {[%clk 0:02:55]}  dxc6 {[%clk 0:03:00]} 5. O-O {[%clk 0:02:54]}  Qd6 {[%clk 0:03:01]} 6. Na3 {[%clk 0:02:52]}  Be6 {[%clk 0:03:00]} 7. Qe2 {[%clk 0:02:51]}  f6 {[%clk 0:02:58]} 8. Rd1 {[%clk 0:02:49]}  Be7 {[%clk 0:02:53]} 9. d4 {[%clk 0:02:46]}  O-O-O {[%clk 0:02:53]} 10. Be3 {[%clk 0:02:44]}  Bg4 {[%clk 0:02:50]} 11. dxe5 {[%clk 0:02:41]}  Qe6 {[%clk 0:02:47]} 12. Rxd8+ {[%clk 0:02:37]}  Bxd8 {[%clk 0:02:48]} 13. Nd4 {[%clk 0:02:27]}  Qd7 {[%clk 0:02:01]} 14. f3 {[%clk 0:02:13]}  fxe5 {[%clk 0:02:00]} 15. Nb3 {[%clk 0:02:01]}  Be6 {[%clk 0:01:57]} 16. Nc5 {[%clk 0:02:01]}  Qe8 {[%clk 0:01:56]} 17. Nxa6 {[%clk 0:01:53]}  bxa6 {[%clk 0:01:53]} 18. Qxa6+ {[%clk 0:01:51]}  Kd7 {[%clk 0:01:53]} 19. Bc5 {[%clk 0:01:44]}  Be7 {[%clk 0:01:26]} 20. Rd1+ {[%clk 0:01:41]}  Bd6 {[%clk 0:01:25]} 21. Bxd6 {[%clk 0:01:39]}  cxd6 {[%clk 0:01:24]} 22. Qb7+ {[%clk 0:01:39]}  Kd8 {[%clk 0:01:25]} 23. Rxd6+ {[%clk 0:01:39]}  Bd7 {[%clk 0:01:26]} 24. Nc4 {[%clk 0:01:31]}  Nf6 {[%clk 0:01:13]} 25. Qxc6 {[%clk 0:01:18]}  Ke7 {[%clk 0:01:05]} 26. Qc5 {[%clk 0:01:16]}  Kf7 {[%clk 0:01:02]} 27. Nxe5+ {[%clk 0:01:16]}  Kg8 {[%clk 0:00:57]} 28. Nxd7 {[%clk 0:01:13]}  Nxd7 {[%clk 0:00:57]} 29. Qd5+ {[%clk 0:01:13]}  Qf7 {[%clk 0:00:50]} 30. Rxd7 {[%clk 0:01:10]} 1-0


[Site "https://www.chess.com"]

[Event "Titled Tuesday Blitz August 08 Late 2023"]
[White "Gaal, Zsoka"]
[Black "The_Straightforward_Rook"]
[WhiteFideId "777765"]
[WhiteElo "2487"]
[BlackElo "2307"]
[Result "0-1"]
[Round "11"]
[TimeControl "180+1"]
[Date "2023.08.08"]
[WhiteClock "0:00:12"]
[BlackClock "0:00:35"]
[Board "63"]

1. Nf3 {[%clk 0:03:00]}  Nf6 {[%clk 0:02:59]} 2. g3 {[%clk 0:02:59]}  d5 {[%clk 0:02:59]} 3. Bg2 {[%clk 0:02:58]}  c5 {[%clk 0:02:59]} 4. O-O {[%clk 0:02:58]}  e6 {[%clk 0:03:00]} 5. b3 {[%clk 0:02:57]}  Nc6 {[%clk 0:02:56]} 6. Bb2 {[%clk 0:02:57]}  Be7 {[%clk 0:02:53]} 7. c4 {[%clk 0:02:57]}  d4 {[%clk 0:02:52]} 8. e3 {[%clk 0:02:57]}  O-O {[%clk 0:02:51]} 9. exd4 {[%clk 0:02:58]}  cxd4 {[%clk 0:02:51]} 10. d3 {[%clk 0:02:58]}  a5 {[%clk 0:02:48]} 11. Na3 {[%clk 0:02:57]}  e5 {[%clk 0:02:45]} 12. Re1 {[%clk 0:02:56]}  Bd6 {[%clk 0:02:37]} 13. Nb5 {[%clk 0:02:57]}  Bb8 {[%clk 0:02:37]} 14. a3 {[%clk 0:02:55]}  Re8 {[%clk 0:02:36]} 15. Qd2 {[%clk 0:02:55]}  h6 {[%clk 0:02:35]} 16. b4 {[%clk 0:02:55]}  axb4 {[%clk 0:02:29]} 17. axb4 {[%clk 0:02:56]}  Rxa1 {[%clk 0:02:30]} 18. Bxa1 {[%clk 0:02:52]}  Bf5 {[%clk 0:02:22]} 19. Nh4 {[%clk 0:02:34]}  Bh7 {[%clk 0:02:21]} 20. Bb2 {[%clk 0:01:54]}  Qd7 {[%clk 0:02:00]} 21. Nf3 {[%clk 0:01:39]}  e4 {[%clk 0:01:55]} 22. dxe4 {[%clk 0:01:38]}  Nxe4 {[%clk 0:01:55]} 23. Qd1 {[%clk 0:01:30]}  d3 {[%clk 0:01:41]} 24. Nfd4 {[%clk 0:01:26]}  Nxb4 {[%clk 0:01:33]} 25. Qb3 {[%clk 0:01:05]}  d2 {[%clk 0:01:19]} 26. Rd1 {[%clk 0:01:04]}  Nc6 {[%clk 0:00:45]} 27. Nxc6 {[%clk 0:01:03]}  bxc6 {[%clk 0:00:46]} 28. Nc3 {[%clk 0:00:58]}  Nxf2 {[%clk 0:00:39]} 29. Nd5 {[%clk 0:00:28]}  Nxd1 {[%clk 0:00:35]} 30. Qxd1 {[%clk 0:00:17]}  Re1+ {[%clk 0:00:35]} 31. Kf2 {[%clk 0:00:12]}  Rxd1 {[%clk 0:00:35]} 0-1


[Site "https://www.chess.com"]

[Event "Titled Tuesday Blitz August 08 Late 2023"]
[White "Fernandez Bustamante, Leancy B."]
[Black "Lopez Idarraga, Daniel Eduardo"]
[WhiteFideId "3523870"]
[BlackFideId "4405501"]
[WhiteElo "2234"]
[BlackElo "2349"]
[Result "0-1"]
[Round "11"]
[TimeControl "180+1"]
[Date "2023.08.08"]
[WhiteClock "0:00:06"]
[BlackClock "0:01:38"]
[Board "65"]

1. e4 {[%clk 0:03:00]}  c6 {[%clk 0:03:00]} 2. d4 {[%clk 0:02:58]}  d5 {[%clk 0:03:01]} 3. exd5 {[%clk 0:02:58]}  cxd5 {[%clk 0:03:01]} 4. Bd3 {[%clk 0:02:58]}  Nc6 {[%clk 0:03:01]} 5. c3 {[%clk 0:02:58]}  Nf6 {[%clk 0:03:02]} 6. h3 {[%clk 0:02:59]}  g6 {[%clk 0:03:01]} 7. Nf3 {[%clk 0:02:59]}  Bg7 {[%clk 0:03:02]} 8. O-O {[%clk 0:02:59]}  O-O {[%clk 0:03:03]} 9. Re1 {[%clk 0:02:59]}  Bf5 {[%clk 0:03:04]} 10. Bxf5 {[%clk 0:02:57]}  gxf5 {[%clk 0:03:04]} 11. Ne5 {[%clk 0:02:53]}  Nxe5 {[%clk 0:03:01]} 12. Rxe5 {[%clk 0:02:44]}  e6 {[%clk 0:03:01]} 13. Bg5 {[%clk 0:02:43]}  Qb6 {[%clk 0:03:00]} 14. Bxf6 {[%clk 0:02:32]}  Bxf6 {[%clk 0:03:01]} 15. Re2 {[%clk 0:02:31]}  Be7 {[%clk 0:03:02]} 16. Qd3 {[%clk 0:02:21]}  Kh8 {[%clk 0:03:01]} 17. Qg3 {[%clk 0:02:16]}  Qd6 {[%clk 0:02:55]} 18. Qxd6 {[%clk 0:02:10]}  Bxd6 {[%clk 0:02:55]} 19. Nd2 {[%clk 0:02:11]}  b5 {[%clk 0:02:48]} 20. a4 {[%clk 0:02:08]}  a6 {[%clk 0:02:47]} 21. axb5 {[%clk 0:02:06]}  axb5 {[%clk 0:02:48]} 22. Ree1 {[%clk 0:02:04]}  Kg7 {[%clk 0:02:45]} 23. Nb3 {[%clk 0:01:58]}  Kf6 {[%clk 0:02:45]} 24. Nc5 {[%clk 0:01:48]}  Bxc5 {[%clk 0:02:13]} 25. dxc5 {[%clk 0:01:49]}  f4 {[%clk 0:02:13]} 26. b4 {[%clk 0:01:44]}  e5 {[%clk 0:02:11]} 27. f3 {[%clk 0:01:42]}  Ke6 {[%clk 0:02:09]} 28. Kf2 {[%clk 0:01:37]}  f5 {[%clk 0:02:09]} 29. g3 {[%clk 0:01:24]}  fxg3+ {[%clk 0:02:04]} 30. Kxg3 {[%clk 0:01:25]}  f4+ {[%clk 0:02:05]} 31. Kf2 {[%clk 0:01:20]}  Kf5 {[%clk 0:02:06]} 32. Red1 {[%clk 0:01:17]}  Ke6 {[%clk 0:02:03]} 33. Rg1 {[%clk 0:01:11]}  e4 {[%clk 0:02:02]} 34. fxe4 {[%clk 0:01:09]}  dxe4 {[%clk 0:02:02]} 35. Rxa8 {[%clk 0:00:46]}  Rxa8 {[%clk 0:02:01]} 36. Rg7 {[%clk 0:00:39]}  Ra2+ {[%clk 0:01:58]} 37. Kf1 {[%clk 0:00:38]}  f3 {[%clk 0:01:59]} 38. Rg8 {[%clk 0:00:31]}  Ke5 {[%clk 0:01:57]} 39. c6 {[%clk 0:00:28]}  e3 {[%clk 0:01:57]} 40. Re8+ {[%clk 0:00:25]}  Kf4 {[%clk 0:01:56]} 41. Kg1 {[%clk 0:00:17]}  Kg3 {[%clk 0:01:51]} 42. Rg8+ {[%clk 0:00:14]}  Kxh3 {[%clk 0:01:52]} 43. Kh1 {[%clk 0:00:12]}  Ra1+ {[%clk 0:01:35]} 44. Rg1 {[%clk 0:00:10]}  Rxg1+ {[%clk 0:01:36]} 45. Kxg1 {[%clk 0:00:10]}  f2+ {[%clk 0:01:37]} 46. Kf1 {[%clk 0:00:10]}  Kg3 {[%clk 0:01:37]} 47. c7 {[%clk 0:00:09]}  Kf3 {[%clk 0:01:38]} 48. c8=Q {[%clk 0:00:06]}  e2# {[%clk 0:01:38]} 0-1


[Site "https://www.chess.com"]

[Event "Titled Tuesday Blitz August 08 Late 2023"]
[White "Chor, Kevin"]
[Black "Topalov, Aleksandar"]
[WhiteFideId "2090740"]
[BlackFideId "925659"]
[WhiteElo "2507"]
[BlackElo "2382"]
[Result "1-0"]
[Round "11"]
[TimeControl "180+1"]
[Date "2023.08.08"]
[WhiteClock "0:00:07"]
[BlackClock "0:00:00"]
[Board "68"]

1. e4 {[%clk 0:03:00]}  e6 {[%clk 0:02:59]} 2. d4 {[%clk 0:03:00]}  d5 {[%clk 0:02:59]} 3. Nd2 {[%clk 0:02:57]}  Nf6 {[%clk 0:02:58]} 4. e5 {[%clk 0:02:57]}  Ng8 {[%clk 0:02:58]} 5. Bd3 {[%clk 0:02:56]}  Ne7 {[%clk 0:02:58]} 6. Ngf3 {[%clk 0:02:48]}  Qd7 {[%clk 0:02:58]} 7. O-O {[%clk 0:02:45]}  b6 {[%clk 0:02:59]} 8. c4 {[%clk 0:02:40]}  dxc4 {[%clk 0:02:56]} 9. Be4 {[%clk 0:02:37]}  Nbc6 {[%clk 0:02:54]} 10. Nxc4 {[%clk 0:02:34]}  Bb7 {[%clk 0:02:53]} 11. Bg5 {[%clk 0:02:23]}  h6 {[%clk 0:02:52]} 12. Bh4 {[%clk 0:02:21]}  g5 {[%clk 0:02:48]} 13. Bg3 {[%clk 0:02:21]}  O-O-O {[%clk 0:02:44]} 14. Rc1 {[%clk 0:02:00]}  Kb8 {[%clk 0:02:43]} 15. Nd6 {[%clk 0:01:50]}  cxd6 {[%clk 0:02:30]} 16. exd6 {[%clk 0:01:51]}  Nd5 {[%clk 0:02:12]} 17. Ne5 {[%clk 0:01:38]}  Nxe5 {[%clk 0:02:03]} 18. Bxe5 {[%clk 0:01:19]}  Bxd6 {[%clk 0:01:48]} 19. Bxh8 {[%clk 0:01:17]}  Rxh8 {[%clk 0:01:48]} 20. Re1 {[%clk 0:01:05]}  f5 {[%clk 0:01:35]} 21. Bd3 {[%clk 0:01:04]}  Nf4 {[%clk 0:01:31]} 22. Bf1 {[%clk 0:01:04]}  Bb4 {[%clk 0:01:28]} 23. Re3 {[%clk 0:00:59]}  Rd8 {[%clk 0:01:17]} 24. Rc4 {[%clk 0:00:55]}  Bf8 {[%clk 0:01:13]} 25. a4 {[%clk 0:00:43]}  Bg7 {[%clk 0:01:11]} 26. g3 {[%clk 0:00:38]}  Qd5 {[%clk 0:01:07]} 27. f3 {[%clk 0:00:33]}  Nh3+ {[%clk 0:00:43]} 28. Kg2 {[%clk 0:00:29]}  g4 {[%clk 0:00:43]} 29. Rb4 {[%clk 0:00:23]}  Ng5 {[%clk 0:00:27]} 30. Bc4 {[%clk 0:00:21]}  Qd6 {[%clk 0:00:22]} 31. Rbb3 {[%clk 0:00:16]}  Nxf3 {[%clk 0:00:17]} 32. d5 {[%clk 0:00:14]}  Nd4 {[%clk 0:00:12]} 33. Rbd3 {[%clk 0:00:12]}  Bxd5+ {[%clk 0:00:12]} 34. Bxd5 {[%clk 0:00:12]}  Qxd5+ {[%clk 0:00:12]} 35. Kf2 {[%clk 0:00:12]}  e5 {[%clk 0:00:11]} 36. a5 {[%clk 0:00:09]}  b5 {[%clk 0:00:10]} 37. a6 {[%clk 0:00:09]}  e4 {[%clk 0:00:06]} 38. Rd2 {[%clk 0:00:08]}  Qc5 {[%clk 0:00:05]} 39. Rc3 {[%clk 0:00:07]}  Qb6 {[%clk 0:00:04]} 40. Kf1 {[%clk 0:00:07]}  Rc8 {[%clk 0:00:02]} 41. Rxc8+ {[%clk 0:00:07]}  Kxc8 {[%clk 0:00:02]} 42. Qc1+ {[%clk 0:00:08]}  Kb8 {[%clk 0:00:03]} 43. Rf2 {[%clk 0:00:07]}  Nf3 {[%clk 0:00:03]} 44. Qf4+ {[%clk 0:00:07]}  Be5 {[%clk 0:00:00]} 45. Qxh6 {[%clk 0:00:07]} 1-0


[Site "https://www.chess.com"]

[Event "Titled Tuesday Blitz August 08 Late 2023"]
[White "Ncatt"]
[Black "Mickiewicz, Piotr"]
[BlackFideId "1114891"]
[WhiteElo "2378"]
[BlackElo "2477"]
[Result "0-1"]
[Round "11"]
[TimeControl "180+1"]
[Date "2023.08.08"]
[WhiteClock "0:00:45"]
[BlackClock "0:00:08"]
[Board "70"]

1. e4 {[%clk 0:03:00]}  c5 {[%clk 0:02:59]} 2. Nf3 {[%clk 0:03:00]}  d6 {[%clk 0:02:59]} 3. Bb5+ {[%clk 0:02:59]}  Nd7 {[%clk 0:02:57]} 4. a4 {[%clk 0:02:58]}  g6 {[%clk 0:02:53]} 5. Nc3 {[%clk 0:02:55]}  Bg7 {[%clk 0:02:53]} 6. O-O {[%clk 0:02:54]}  Nf6 {[%clk 0:02:52]} 7. d4 {[%clk 0:02:48]}  cxd4 {[%clk 0:02:51]} 8. Nxd4 {[%clk 0:02:47]}  O-O {[%clk 0:02:50]} 9. Bg5 {[%clk 0:02:45]}  a6 {[%clk 0:02:37]} 10. Bc4 {[%clk 0:02:44]}  Qa5 {[%clk 0:02:19]} 11. Qd2 {[%clk 0:02:39]}  Nb6 {[%clk 0:01:18]} 12. Bb3 {[%clk 0:02:33]}  Qc5 {[%clk 0:01:02]} 13. Rfe1 {[%clk 0:02:28]}  Nc4 {[%clk 0:00:58]} 14. Qc1 {[%clk 0:02:26]}  Qxd4 {[%clk 0:00:56]} 15. Rd1 {[%clk 0:02:24]}  Qc5 {[%clk 0:00:54]} 16. Nd5 {[%clk 0:02:22]}  Nxd5 {[%clk 0:00:49]} 17. Rxd5 {[%clk 0:02:22]}  Qc7 {[%clk 0:00:48]} 18. Bxe7 {[%clk 0:02:16]}  Qxe7 {[%clk 0:00:46]} 19. Bxc4 {[%clk 0:02:16]}  Be6 {[%clk 0:00:46]} 20. Ra3 {[%clk 0:02:13]}  Bxd5 {[%clk 0:00:45]} 21. Bxd5 {[%clk 0:02:13]}  Rac8 {[%clk 0:00:42]} 22. Rb3 {[%clk 0:02:13]}  Rc7 {[%clk 0:00:42]} 23. c4 {[%clk 0:02:10]}  Kh8 {[%clk 0:00:41]} 24. Rh3 {[%clk 0:02:04]}  a5 {[%clk 0:00:37]} 25. Qd2 {[%clk 0:02:02]}  b6 {[%clk 0:00:36]} 26. b3 {[%clk 0:02:02]}  Qe5 {[%clk 0:00:35]} 27. g4 {[%clk 0:02:00]}  Qa1+ {[%clk 0:00:31]} 28. Kg2 {[%clk 0:02:00]}  Qb2 {[%clk 0:00:29]} 29. Qf4 {[%clk 0:01:54]}  Qe5 {[%clk 0:00:24]} 30. Qe3 {[%clk 0:01:54]}  g5 {[%clk 0:00:21]} 31. Qxb6 {[%clk 0:01:51]}  Re7 {[%clk 0:00:19]} 32. Rf3 {[%clk 0:01:45]}  h5 {[%clk 0:00:18]} 33. Rf5 {[%clk 0:01:41]}  Qd4 {[%clk 0:00:15]} 34. Qxd6 {[%clk 0:01:41]}  Rxe4 {[%clk 0:00:09]} 35. h3 {[%clk 0:01:24]}  Rxg4+ {[%clk 0:00:09]} 36. hxg4 {[%clk 0:01:12]}  Qxg4+ {[%clk 0:00:10]} 37. Kf1 {[%clk 0:01:08]}  Qxf5 {[%clk 0:00:11]} 38. Qe7 {[%clk 0:01:05]}  g4 {[%clk 0:00:10]} 39. Qc7 {[%clk 0:01:01]}  Bd4 {[%clk 0:00:09]} 40. f3 {[%clk 0:00:58]}  gxf3 {[%clk 0:00:10]} 41. Qe7 {[%clk 0:00:46]}  Qd3+ {[%clk 0:00:08]} 42. Ke1 {[%clk 0:00:45]}  f2# {[%clk 0:00:08]} 0-1


[Site "https://www.chess.com"]